bitfinex-derivatives/quotes_BNBF0:USTF0_20250116
["timestamp","ask_amount","ask_price","bid_price","bid_amount"]
[1736986815672,3.61483306,712.81,710.55,0.28147209]
[1736986815870,3.33425339,712.8,710.56,2.76155927]
[1736986816076,3.33425339,712.79,710.56,2.76155927]
[1736986816273,3.33425339,712.78,710.56,2.76155927]
[1736986816471,3.33392089,712.77,710.56,2.76155927]
[1736986816675,3.33392089,712.76,710.56,2.76155927]
[1736986816876,3.33392089,712.75,710.67,0.28142457]
[1736986817176,3.33392089,712.74,710.67,0.28142457]
[1736986817474,0.28060329,712.75,710.67,0.28142457]
[1736986817475,3.33392089,712.73,710.67,0.28142457]
[1736986817675,3.33392089,712.72,710.67,0.28142457]
[1736986817875,3.33392089,712.71,710.67,0.28142457]
[1736986818072,3.33392089,712.7,710.67,0.28142457]
[1736986818274,3.33392089,712.69,710.67,0.28142457]
[1736986818476,3.3339443,712.68,710.67,0.28142457]
[1736986818670,3.3339443,712.67,710.67,0.28142457]
[1736986818872,3.3339443,712.66,710.67,0.28142457]
[1736986819071,3.61458697,712.65,710.67,0.28142457]
[1736986819277,3.3339443,712.64,710.67,0.28142457]
[1736986819472,3.33398303,712.63,710.67,0.28142457]
[1736986819674,3.07598903,712.62,710.67,0.28142457]
[1736986819877,3.07598903,712.61,710.67,0.28142457]
[1736986820072,3.3340159,712.6,710.67,0.28142457]
[1736986820279,3.3340159,712.59,710.67,0.28142457]
[1736986820578,3.3324487,712.58,710.67,0.28142457]
[1736986820879,3.3324487,712.57,710.67,0.28142457]
[1736986821072,1.32080791,712.65,710.67,0.28142457]
[1736986821073,3.3324487,712.56,710.67,0.28142457]
[1736986821273,3.33249365,712.55,710.67,0.28142457]
[1736986821472,3.33249365,712.54,710.67,0.28142457]
[1736986821678,3.33250788,712.53,710.67,0.28142457]
[1736986821979,3.33250788,712.52,710.67,0.28142457]
[1736986822174,3.33250788,712.51,710.67,0.28142457]
[1736986822481,0.28064267,712.65,710.67,0.28142457]
[1736986822482,3.33250788,712.5,710.67,0.28142457]
[1736986822679,3.33252665,712.49,710.67,0.28142457]
[1736986822878,3.0744406,712.48,710.67,0.28142457]
[1736986823178,3.0744406,712.47,710.67,0.28142457]
[1736986823378,3.0744406,712.46,710.67,0.28142457]
[1736986823572,0.28064267,712.65,710.67,0.28142457]
[1736986823573,3.35516205,712.45,710.67,0.28142457]
[1736986823777,3.35516599,712.44,710.67,0.28142457]
[1736986823977,3.35516993,712.43,710.67,0.28142457]
[1736986824178,3.35517387,712.42,710.67,0.28142457]
[1736986824381,3.35517781,712.41,710.67,0.28142457]
[1736986824580,3.35518175,712.4,710.67,0.28142457]
[1736986824780,3.0744406,712.39,710.67,0.28142457]
[1736986824980,3.33250025,712.38,710.67,0.28142457]
[1736986825175,3.33250025,712.37,710.67,0.28142457]
[1736986825379,3.33250025,712.36,710.67,0.28142457]
[1736986825579,3.33250025,712.35,710.67,0.28142457]
[1736986825782,3.33250025,712.34,710.67,0.28142457]
[1736986825979,3.33250025,712.33,710.67,0.28142457]
[1736986826181,3.07675489,712.32,710.67,0.28142457]
[1736986826481,3.07675489,712.31,710.67,0.28142457]
[1736986826679,3.07675489,712.3,710.67,0.28142457]
[1736986826879,3.07675489,712.29,710.67,0.28142457]
[1736986827079,3.07675489,712.28,710.67,0.28142457]
[1736986827280,0.28074115,712.4,710.67,0.28142457]
[1736986827480,1.87768142,712.39,710.67,0.28142457]
[1736986827784,1.87768142,712.38,710.67,0.28142457]
[1736986827979,1.87757074,712.37,710.67,0.28142457]
[1736986828180,1.87757074,712.36,710.67,0.28142457]
[1736986828379,3.07897523,712.35,710.67,0.28142457]
[1736986828580,3.07897523,712.34,710.67,0.28142457]
[1736986828776,1.87757074,712.33,710.67,0.28142457]
[1736986828981,3.0788917,712.32,710.67,0.28142457]
[1736986829181,3.0788917,712.31,710.67,0.28142457]
[1736986829481,3.0788917,712.3,710.67,2.18042457]
[1736986829683,3.0788917,712.29,710.67,2.18042457]
[1736986829882,3.07892482,712.28,710.67,2.18042457]
[1736986830177,3.07892482,712.27,710.67,2.18042457]
[1736986830385,3.07902954,712.26,710.67,2.18042457]
[1736986830577,3.07902954,712.25,710.67,2.18042457]
[1736986830782,3.07902954,712.24,710.67,2.18042457]
[1736986830982,3.07902954,712.23,710.67,3.85142457]
[1736986831182,0.28074115,712.4,710.67,3.85142457]
[1736986831183,3.07902954,712.22,710.67,3.85142457]
[1736986831483,3.07902954,712.21,710.67,5.74642457]
[1736986831681,3.07902954,712.2,710.67,5.74642457]
[1736986831885,1.87767266,712.19,710.67,5.74642457]
[1736986832080,1.87767266,712.18,710.67,5.74642457]
[1736986832283,1.87767266,712.17,710.67,5.74642457]
[1736986832485,1.87767266,712.16,710.67,5.74642457]
[1736986832678,1.87767266,712.15,710.67,5.74642457]
[1736986832883,1.87767266,712.14,710.67,5.74642457]
[1736986833084,1.87767266,712.13,710.67,5.74642457]
[1736986833284,1.87767266,712.12,710.67,5.74642457]
[1736986833587,1.87767266,712.11,710.67,5.74642457]
[1736986833784,1.87767266,712.1,710.67,5.74642457]
[1736986833983,1.87776895,712.09,710.67,5.74642457]
[1736986834182,1.12661754,712.08,710.67,5.74642457]
[1736986834389,0.28074115,712.4,710.67,5.74642457]
[1736986834686,3.08035118,712.39,710.67,5.74642457]
[1736986834882,3.08035118,712.38,710.67,5.74642457]
[1736986835079,3.08035118,712.37,710.67,5.74642457]
[1736986835385,3.08035118,712.36,710.67,5.74642457]
[1736986835587,3.08035118,712.35,710.67,5.74642457]
[1736986835785,1.87836435,712.34,710.67,5.74642457]
[1736986836086,1.87836435,712.33,710.67,5.74642457]
[1736986836288,1.87836435,712.32,710.67,5.74642457]
[1736986836484,1.87836435,712.31,710.67,5.74642457]
[1736986836689,1.87836435,712.3,710.67,5.74642457]
[1736986836986,1.87836435,712.29,710.67,5.74642457]
[1736986837287,0.28074115,712.4,710.67,5.74642457]
[1736986837288,1.87836435,712.28,710.71,1.0462878]
[1736986837483,1.87836435,712.27,710.71,1.0462878]
[1736986837680,3.08130175,712.26,710.71,1.0462878]
[1736986837885,3.08130175,712.25,710.71,1.0462878]
[1736986838087,3.08215226,712.24,710.72,1.0462878]
[1736986838284,3.08215226,712.23,710.72,1.0462878]
[1736986838486,3.08215226,712.22,710.74,0.28139685]
[1736986838689,3.08215226,712.21,710.74,0.28139685]
[1736986838889,1.87921486,712.2,710.74,0.28139685]
[1736986839085,1.87921486,712.19,710.74,0.28139685]
[1736986839285,1.87921486,712.18,710.74,0.28139685]
[1736986839484,1.87990253,712.17,710.74,0.28139685]
[1736986839685,1.87988737,712.16,710.74,0.28139685]
[1736986839886,1.87988737,712.15,710.74,0.28139685]
[1736986840086,0.28074115,712.4,710.74,0.28139685]
[1736986840087,0.28074115,712.4,710.76,1.0462878]
[1736986840291,3.08314349,712.39,710.78,0.28138101]
[1736986840493,3.08314349,712.38,710.78,0.28138101]
[1736986840694,3.08314349,712.37,710.78,0.28138101]
[1736986840894,3.08314349,712.36,710.78,0.28138101]
[1736986841193,3.08314349,712.35,710.78,0.28138101]
[1736986841493,1.88007147,712.34,710.8,1.0462878]
[1736986841692,1.88007147,712.33,710.82,0.28136518]
[1736986841991,1.88007147,712.32,710.82,0.28136518]
[1736986842192,1.88007147,712.31,710.82,0.28136518]
[1736986842488,1.88007147,712.3,710.82,0.28136518]
[1736986842691,1.88007147,712.29,710.82,0.28136518]
[1736986842887,1.88007147,712.28,710.82,0.28136518]
[1736986843090,1.12815146,712.27,710.82,2.20036518]
[1736986843289,1.12815146,712.26,710.82,2.20036518]
[1736986843491,0.28074115,712.4,710.82,2.20036518]
[1736986843794,3.08582707,712.39,710.82,2.20036518]
[1736986843994,3.08582707,712.38,710.82,2.20036518]
[1736986844294,3.08582707,712.37,710.82,2.20036518]
[1736986844596,3.08582707,712.36,710.82,2.20036518]
[1736986844796,3.08582707,712.35,710.82,2.20036518]
[1736986845091,3.0856293,712.34,710.82,2.20036518]
[1736986845297,3.0856293,712.33,710.82,2.20036518]
[1736986845497,3.0856293,712.32,710.82,2.20036518]
[1736986845700,3.0856293,712.31,710.82,2.20036518]
[1736986845991,3.0856293,712.3,710.82,2.20036518]
[1736986846191,3.0856293,712.29,710.82,2.20036518]
[1736986846397,3.0856293,712.28,710.82,2.20036518]
[1736986846596,3.0856293,712.27,710.82,2.20036518]
[1736986846895,3.0856293,712.26,710.82,2.20036518]
[1736986847097,3.0856293,712.25,710.82,2.20036518]
[1736986847393,3.08537229,712.24,710.82,2.20036518]
[1736986847697,3.08537229,712.23,710.82,2.20036518]
[1736986847893,3.08537229,712.22,710.82,2.20036518]
[1736986848097,3.08537229,712.21,710.82,2.20036518]
[1736986848297,3.08537229,712.2,710.82,2.20036518]
[1736986848493,3.08537229,712.19,710.82,2.20036518]
[1736986848698,3.08537229,712.18,710.82,2.20036518]
[1736986848897,3.08537229,712.17,710.82,2.20036518]
[1736986849099,3.08537229,712.16,710.82,2.20036518]
[1736986849297,3.08537229,712.15,710.82,2.20036518]
[1736986849501,3.08537229,712.14,710.82,3.32536518]
[1736986849798,3.08537229,712.13,710.82,3.32536518]
[1736986849997,3.08537229,712.12,710.82,3.32536518]
[1736986850199,3.08537229,712.11,710.82,3.32536518]
[1736986850396,3.08537229,712.1,710.82,3.32536518]
[1736986850701,3.34353155,712.09,710.82,3.32536518]
[1736986850904,3.34353155,712.08,710.82,3.32536518]
[1736986851097,3.34353155,712.07,710.82,3.32536518]
[1736986851301,3.08537229,712.06,710.82,3.32536518]
[1736986851598,3.08389749,712.05,710.82,3.32536518]
[1736986851797,3.08389749,712.04,710.82,3.32536518]
[1736986852008,3.08389749,712.03,710.82,3.32536518]
[1736986852197,3.08389749,712.02,710.82,3.32536518]
[1736986852399,3.08389749,712.01,710.82,3.32536518]
[1736986852603,3.08389749,712.0,710.82,3.32536518]
[1736986852802,3.08389749,711.99,710.82,3.32536518]
[1736986853002,1.87856913,711.98,710.82,3.32536518]
[1736986853203,3.08071598,711.97,710.82,3.32536518]
[1736986853402,3.08071598,711.96,710.82,3.32536518]
[1736986853600,3.08071598,711.95,710.82,3.32536518]
[1736986853803,3.08071598,711.94,710.82,3.32536518]
[1736986854005,3.08071598,711.93,710.82,3.32536518]
[1736986854206,3.08071598,711.92,710.82,3.32536518]
[1736986854400,3.08071598,711.91,710.82,3.32536518]
[1736986854602,3.08071598,711.9,710.82,3.32536518]
[1736986854804,3.08071598,711.89,710.82,3.32536518]
[1736986855105,3.08079187,711.88,710.82,3.32536518]
[1736986855306,3.08079187,711.87,710.82,3.32536518]
[1736986855507,3.08079187,711.86,710.82,3.32536518]
[1736986855701,3.08079187,711.85,710.82,3.32536518]
[1736986855903,3.08079187,711.84,710.82,3.32536518]
[1736986856106,3.08079187,711.83,710.82,3.32536518]
[1736986856306,3.08075302,711.82,710.82,3.32536518]
[1736986856506,3.08075302,711.81,710.82,3.32536518]
[1736986856702,3.0804522,711.8,710.82,3.32536518]
[1736986856906,1.87859832,711.79,710.82,3.32536518]
[1736986857109,1.87859832,711.78,710.82,3.32536518]
[1736986857309,1.87859832,711.77,710.82,3.32536518]
[1736986857515,1.87859832,711.76,710.82,3.32536518]
[1736986857709,1.12722735,711.75,710.82,3.32536518]
[1736986858011,1.12695326,711.74,710.82,3.32536518]
[1736986858209,1.04016524,712.21,710.82,3.32536518]
[1736986858405,3.61867952,712.2,710.82,3.32536518]
[1736986858609,1.04016524,712.43,710.82,3.32536518]
[1736986858610,3.61868346,712.19,710.82,3.32536518]
[1736986858809,3.33789118,712.18,710.82,3.32536518]
[1736986859005,3.618723,712.17,710.82,3.32536518]
[1736986859211,0.69836489,712.81,710.82,3.32536518]
[1736986859212,3.61872694,712.16,710.82,3.32536518]
[1736986859510,3.61919446,712.15,710.82,3.32536518]
[1736986859711,3.33835475,712.14,710.82,3.32536518]
[1736986859913,3.33835475,712.13,710.82,3.32536518]
[1736986860114,3.33835475,712.12,710.82,3.32536518]
[1736986860412,3.61921023,712.11,710.82,3.32536518]
[1736986860610,3.61921417,712.1,710.82,3.32536518]
[1736986860811,3.61900831,712.09,710.82,3.32536518]
[1736986861012,3.07995311,712.08,710.82,3.32536518]
[1736986861205,3.07995311,712.07,710.82,3.32536518]
[1736986861404,3.07995311,712.06,710.82,3.32536518]
[1736986861611,3.07995311,712.05,710.82,3.32536518]
[1736986861811,3.07995311,712.04,710.82,3.32536518]
[1736986862006,0.28086337,712.09,710.82,3.32536518]
[1736986862007,3.07995311,712.03,710.82,3.32536518]
[1736986862211,3.07995311,712.02,710.82,3.32536518]
[1736986862514,3.07995311,712.01,710.82,3.32536518]
[1736986862811,0.28086337,712.09,710.82,3.32536518]
[1736986862812,3.07995311,712.0,710.82,3.32536518]
[1736986863011,3.07995311,711.99,710.82,3.32536518]
[1736986863208,3.07995311,711.98,710.82,3.32536518]
[1736986863411,3.07995311,711.97,710.82,4.10036518]
[1736986863714,3.07995311,711.96,710.82,5.22536518]
[1736986863909,3.07995311,711.95,710.82,5.22536518]
[1736986864214,3.07995311,711.94,710.82,5.22536518]
[1736986864413,3.07995311,711.93,710.82,5.22536518]
[1736986864610,3.07995311,711.92,710.82,5.22536518]
[1736986864810,3.07995311,711.91,710.82,5.22536518]
[1736986865008,3.07995311,711.9,710.82,5.22536518]
[1736986865313,3.07995311,711.89,710.82,5.22536518]
[1736986865512,3.07995311,711.88,710.82,5.22536518]
[1736986865709,3.07995311,711.87,710.82,5.22536518]
[1736986865914,0.28086337,712.09,710.82,5.22536518]
[1736986865915,3.07995311,711.86,710.82,5.22536518]
[1736986866213,3.07995311,711.85,710.82,5.22536518]
[1736986866413,3.07995311,711.84,710.82,5.22536518]
[1736986866713,3.07995311,711.83,710.82,5.22536518]
[1736986866909,1.87802003,711.82,710.82,8.08236518]
[1736986867115,1.87802003,711.81,710.82,8.08236518]
[1736986867314,1.87802003,711.8,710.82,8.08236518]
[1736986867516,1.87802003,711.79,710.82,8.08236518]
[1736986867714,1.87802003,711.78,710.82,8.08236518]
[1736986867915,1.87548225,711.77,710.82,8.08236518]
[1736986868215,1.87548225,711.76,710.82,8.08236518]
[1736986868516,1.87548225,711.75,710.82,8.08236518]
[1736986868718,1.87548225,711.74,710.82,8.08236518]
[1736986869015,1.87548225,711.73,710.82,8.08236518]
[1736986869216,1.87548225,711.72,710.82,8.08236518]
[1736986869416,1.12537204,711.71,710.82,8.08236518]
[1736986869719,1.12486712,711.7,710.82,8.08236518]
[1736986869917,0.28086337,712.09,710.82,8.08236518]
[1736986870217,3.33249599,712.08,710.82,8.08236518]
[1736986870516,3.61336725,712.07,710.82,7.801]
[1736986870712,3.61337119,712.06,710.82,7.801]
[1736986870915,3.33249599,712.05,710.82,7.801]
[1736986871113,3.33249599,712.04,710.82,7.801]
[1736986871314,3.33249599,712.03,710.82,7.801]
[1736986871516,3.33249599,712.02,710.82,7.801]
[1736986871718,3.33249599,712.01,710.82,7.801]
[1736986872017,0.2808752,712.06,710.82,7.801]
[1736986872018,3.33249599,712.0,710.82,7.801]
[1736986872319,3.61339881,711.99,710.82,7.801]
[1736986872519,3.33249599,711.98,710.82,7.801]
[1736986872819,3.6134067,711.97,710.82,7.801]
[1736986873012,3.35519987,711.96,710.82,7.801]
[1736986873218,3.61344568,711.95,710.82,7.801]
[1736986873517,6.32275448,712.67,710.82,7.801]
[1736986873518,3.61344962,711.94,710.82,7.801]
[1736986873817,3.33165933,711.93,710.82,7.801]
[1736986874019,3.33165933,711.92,710.82,7.801]
[1736986874220,0.28092254,711.94,710.82,7.801]
[1736986874221,3.33009724,711.91,710.82,7.801]
[1736986874420,3.33029934,711.9,710.82,7.801]
[1736986874719,3.33029934,711.89,710.82,7.801]
[1736986874917,3.33029934,711.88,710.82,7.801]
[1736986875218,3.61127039,711.87,710.82,9.679]
[1736986875513,3.33032022,711.86,710.82,9.679]
[1736986875717,3.33032022,711.85,710.82,9.679]
[1736986875918,3.33032022,711.84,710.82,9.679]
[1736986876118,3.33032022,711.83,710.82,9.679]
[1736986876417,3.33032022,711.82,710.82,9.679]
[1736986876617,3.33032022,711.81,710.82,9.679]
[1736986876813,3.33032022,711.8,710.82,9.679]
[1736986877018,3.33032022,711.79,710.82,9.679]
[1736986877219,3.07205748,711.78,710.82,9.679]
[1736986877415,3.33033222,711.77,710.82,9.679]
[1736986877613,3.07205748,711.76,710.82,9.679]
[1736986877817,3.07205748,711.75,710.82,9.679]
[1736986878021,3.07205748,711.74,710.82,9.679]
[1736986878219,3.07205748,711.73,710.82,9.679]
[1736986878518,3.07205748,711.72,710.82,9.679]
[1736986878718,3.07205748,711.71,710.82,9.679]
[1736986878917,3.07205748,711.7,710.82,9.679]
[1736986879119,3.07205748,711.69,710.82,9.679]
[1736986879316,3.07205748,711.68,710.82,9.679]
[1736986879513,3.07205748,711.67,710.82,9.679]
[1736986879718,3.07205748,711.66,710.82,9.679]
[1736986879920,3.07205748,711.65,710.82,9.679]
[1736986880219,3.07205748,711.64,710.82,9.679]
[1736986880518,3.07205748,711.63,710.82,9.679]
[1736986880713,1.87323502,711.62,710.82,9.679]
[1736986880913,1.87323502,711.61,710.82,9.679]
[1736986881217,3.07135399,711.6,710.82,9.679]
[1736986881418,3.06963441,711.59,710.82,9.679]
[1736986881620,3.06960507,711.58,710.82,9.679]
[1736986881920,1.04016524,711.83,710.82,9.679]
[1736986882121,3.60880817,711.82,710.82,9.679]
[1736986882322,3.60881212,711.81,710.82,9.679]
[1736986882517,3.60881607,711.8,710.82,9.679]
[1736986882816,3.32783827,711.79,710.82,9.679]
[1736986883122,3.06953788,711.78,710.82,9.679]
[1736986883322,3.06953788,711.77,710.82,9.679]
[1736986883521,3.06915971,711.76,710.82,9.679]
[1736986883722,3.06915971,711.75,710.82,9.679]
[1736986883917,3.06915971,711.74,710.82,9.679]
[1736986884120,3.06915971,711.73,710.82,9.679]
[1736986884319,3.06915971,711.72,710.82,9.679]
[1736986884520,3.06915971,711.71,710.82,9.679]
[1736986884722,0.2809778,711.8,710.82,9.679]
[1736986884723,3.06915971,711.7,710.82,9.679]
[1736986884917,3.06915971,711.69,710.82,9.679]
[1736986885122,3.06915971,711.68,710.82,9.679]
[1736986885318,3.32749969,711.67,710.82,9.679]
[1736986885516,3.32749969,711.66,710.82,9.679]
[1736986885723,0.2809778,711.8,710.82,9.679]
[1736986885724,3.32749969,711.65,710.82,9.679]
[1736986885924,3.32749969,711.64,710.82,9.679]
[1736986886124,3.32749969,711.63,710.82,9.679]
[1736986886319,0.2809778,711.8,710.82,9.679]
[1736986886320,3.32752898,711.62,710.82,9.679]
[1736986886524,3.32752898,711.61,710.82,9.679]
[1736986886724,1.04016524,711.55,710.82,9.679]
[1736986886925,3.32752898,711.54,710.82,9.679]
[1736986887119,3.32752898,711.53,710.82,9.679]
[1736986887322,3.32752898,711.52,710.82,9.679]
[1736986887524,3.32752898,711.51,710.82,9.679]
[1736986887726,3.32752898,711.5,710.82,9.679]
[1736986887924,3.06915971,711.49,710.82,9.679]
[1736986888125,3.06915971,711.48,710.82,9.679]
[1736986888324,3.06915971,711.47,710.82,9.679]
[1736986888526,3.06915971,711.46,710.82,9.679]
[1736986888725,3.06915971,711.45,710.82,9.679]
[1736986888924,3.06915971,711.44,710.82,9.679]
[1736986889120,3.06915971,711.43,710.82,9.679]
[1736986889325,1.87135606,711.42,710.82,9.679]
[1736986889520,1.87135606,711.41,710.82,9.679]
[1736986889723,1.86994738,711.4,710.82,9.679]
[1736986890019,1.86994738,711.39,710.82,9.679]
[1736986890225,1.86994738,711.38,710.82,9.679]
[1736986890425,1.86994738,711.37,710.82,9.679]
[1736986890625,1.86994738,711.36,710.82,9.679]
[1736986890825,1.86994738,711.35,710.82,9.679]
[1736986891126,1.86758066,711.34,710.82,9.679]
[1736986891421,1.86758066,711.33,710.82,9.679]
[1736986891627,0.28105677,711.6,710.82,9.679]
[1736986891628,1.12060247,711.32,710.82,9.679]
[1736986891921,1.12060247,711.31,710.82,9.679]
[1736986892121,1.04016524,711.55,710.82,9.679]
[1736986892325,3.32053396,711.54,710.82,9.679]
[1736986892526,3.32053396,711.53,710.82,9.679]
[1736986892827,3.32053396,711.52,710.82,9.679]
[1736986893024,3.32053396,711.51,710.82,9.679]
[1736986893221,3.32053396,711.5,710.82,9.679]
[1736986893424,3.32053396,711.49,710.82,9.679]
[1736986893626,3.32053396,711.48,710.82,9.679]
[1736986893828,3.32053396,711.47,710.82,9.679]
[1736986894022,3.32053396,711.46,710.82,9.679]
[1736986894221,1.04016524,711.57,710.82,9.679]
[1736986894222,3.32053396,711.45,710.82,9.679]
[1736986894421,3.32053396,711.44,710.82,9.679]
[1736986894726,3.32053834,711.43,710.82,9.679]
[1736986894927,3.32053834,711.42,710.82,9.679]
[1736986895129,3.32053834,711.41,710.82,9.679]
[1736986895429,3.06216559,711.4,710.82,9.679]
[1736986895631,3.06216559,711.39,710.82,9.679]
[1736986895822,1.86722961,711.38,710.82,9.679]
[1736986896029,2.12560463,711.37,710.82,9.679]
[1736986896323,1.86722961,711.36,710.82,9.679]
[1736986896529,1.86722961,711.35,710.82,9.679]
[1736986896827,0.25837275,711.43,710.82,9.679]
[1736986896828,1.12039462,711.34,710.82,9.679]
[1736986897027,0.25837275,711.43,710.82,9.679]
[1736986897028,1.86706494,711.33,710.82,9.679]
[1736986897223,1.12039462,711.32,710.82,9.679]
[1736986897428,0.25837275,711.43,710.82,9.679]
[1736986897628,2.12542579,711.42,710.82,9.679]
[1736986897829,3.32025375,711.41,710.82,9.679]
[1736986898125,3.32026013,711.4,710.82,9.679]
[1736986898326,3.32026013,711.39,710.82,9.679]
[1736986898528,2.12543217,711.38,710.82,9.679]
[1736986898728,2.12543217,711.37,710.82,9.679]
[1736986898925,1.86705681,711.36,710.82,9.679]
[1736986899122,1.86705681,711.35,710.82,9.679]
[1736986899332,1.86705681,711.34,710.82,9.679]
[1736986899631,1.86705681,711.33,710.82,9.679]
[1736986899827,1.04016524,711.55,710.82,9.679]
[1736986899828,1.12028933,711.32,710.82,9.679]
[1736986900026,1.12028933,711.31,710.82,9.679]
[1736986900224,1.12028933,711.3,710.82,9.679]
[1736986900427,1.04016524,711.55,710.82,9.679]
[1736986900626,3.32124771,711.54,710.82,9.679]
[1736986900829,3.32128055,711.53,710.82,9.679]
[1736986901026,3.32128055,711.52,710.82,9.679]
[1736986901234,3.32128055,711.51,710.82,9.679]
[1736986901433,3.32128055,711.5,710.82,9.679]
[1736986901632,3.32128055,711.49,710.82,9.679]
[1736986901827,3.32128055,711.48,710.82,9.679]
[1736986902025,3.32128055,711.47,710.82,9.679]
[1736986902230,3.32128055,711.46,710.82,9.679]
[1736986902532,3.32128055,711.45,710.82,9.679]
[1736986902732,0.25837071,711.44,710.82,9.679]
[1736986902934,1.86908453,711.43,710.82,9.679]
[1736986903134,3.32358253,711.42,710.82,9.679]
[1736986903334,3.32358253,711.41,710.82,9.679]
[1736986903529,3.32358253,711.4,710.82,9.679]
[1736986903734,3.32358253,711.39,710.82,9.679]
[1736986903934,0.28105677,711.6,710.82,9.679]
[1736986903935,3.32358253,711.38,710.82,9.679]
[1736986904132,3.06521182,711.37,710.82,9.679]
[1736986904332,3.06521182,711.36,710.82,9.679]
[1736986904532,3.06521182,711.35,710.82,9.679]
[1736986904732,1.9455397,711.34,710.82,9.679]
[1736986904937,3.06809728,711.33,710.82,9.679]
[1736986905136,1.04016524,711.53,710.82,9.679]
[1736986905137,3.06807823,711.32,710.82,9.679]
[1736986905437,3.06793951,711.31,710.82,9.679]
[1736986905636,0.28105677,711.6,710.82,9.679]
[1736986905637,3.06793951,711.3,710.82,9.679]
[1736986905831,3.06793951,711.29,710.82,9.679]
[1736986906135,1.87084208,711.28,710.82,9.679]
[1736986906331,3.06876163,711.27,710.82,9.679]
[1736986906537,3.06873401,711.26,710.82,9.679]
[1736986906837,1.87084208,711.25,710.82,9.679]
[1736986907037,1.87084208,711.24,710.82,9.679]
[1736986907231,1.04016524,711.47,710.82,9.679]
[1736986907232,1.87084208,711.23,710.82,9.679]
[1736986907433,1.87084208,711.22,710.82,9.679]
[1736986907630,1.87084208,711.21,710.82,9.679]
[1736986907834,1.04016524,711.47,710.82,9.679]
[1736986907835,1.87084208,711.2,710.82,9.679]
[1736986908035,1.87084208,711.19,710.82,9.679]
[1736986908232,0.28105677,711.6,710.82,9.679]
[1736986908233,1.87084208,711.18,710.82,9.679]
[1736986908536,1.87152279,711.17,710.82,9.679]
[1736986908732,1.87152279,711.16,710.82,9.679]
[1736986908932,1.87152279,711.15,710.82,9.679]
[1736986909136,1.8725463,711.14,710.82,9.679]
[1736986909333,1.12357419,711.13,710.82,9.679]
[1736986909533,1.04016524,711.55,710.82,9.679]
[1736986909733,3.61081799,711.54,710.82,9.679]
[1736986909937,3.35240477,711.53,710.82,9.679]
[1736986910138,3.35240872,711.52,710.82,9.679]
[1736986910439,1.04016524,711.98,710.82,9.679]
[1736986910440,3.35241267,711.51,710.82,9.679]
[1736986910640,3.35279366,711.5,710.82,9.679]
[1736986910838,3.07169739,711.49,710.82,9.679]
[1736986911037,3.35280156,711.48,710.82,9.679]
[1736986911340,3.35280551,711.47,710.82,9.679]
[1736986911533,3.35280946,711.46,710.82,9.679]
[1736986911732,3.07169739,711.45,710.82,9.679]
[1736986911939,3.07169739,711.44,710.82,9.679]
[1736986912139,3.07169739,711.43,710.82,9.679]
[1736986912334,3.07169739,711.42,710.82,9.679]
[1736986912534,3.07169739,711.41,710.82,9.679]
[1736986912732,3.07169739,711.4,710.82,9.679]
[1736986912935,3.07169739,711.39,710.82,9.679]
[1736986913133,1.94782799,711.38,710.82,9.679]
[1736986913344,3.07177157,711.37,710.82,9.679]
[1736986913640,3.07177157,711.36,710.82,9.679]
[1736986913941,3.07177157,711.35,710.82,9.679]
[1736986914239,3.07177157,711.34,710.82,9.679]
[1736986914439,3.07217553,711.33,710.82,9.679]
[1736986914741,3.07217553,711.32,710.82,9.679]
[1736986914941,3.07217553,711.31,710.82,9.679]
[1736986915141,3.07217553,711.3,710.82,9.679]
[1736986915335,3.07217553,711.29,710.82,9.679]
[1736986915536,3.07217553,711.28,710.82,9.679]
[1736986915738,1.87326356,711.27,710.82,9.679]
[1736986915939,3.07213952,711.26,710.82,9.679]
[1736986916137,1.87326356,711.25,710.82,9.679]
[1736986916335,1.87344019,711.24,710.82,9.679]
[1736986916643,1.87344019,711.23,710.82,9.679]
[1736986916839,1.87337783,711.22,710.82,9.679]
[1736986917141,1.87337783,711.21,710.82,9.679]
[1736986917334,1.87337783,711.2,710.82,9.679]
[1736986917538,1.87337783,711.19,710.82,9.679]
[1736986917734,3.072162,711.18,710.82,9.679]
[1736986918033,3.072162,711.17,710.82,9.679]
[1736986918235,3.07201133,711.16,710.82,9.679]
[1736986918436,3.07201133,711.15,710.82,9.679]
[1736986918639,3.07201133,711.14,710.82,9.679]